[Event "12th WLC Weekend 2022"]
[Site "Eindhoven"]
[Date "2022.05.13"]
[Round "1.11"]
[White "Van Kuijk, Vadim"]
[Black "Kools, Thomas"]
[Result "0-1"]
[ECO "B41"]
[WhiteElo "1898"]
[BlackElo "2160"]
[Annotator "TA"]
[PlyCount "68"]
[EventDate "2022.05.13"]
[EventType "swiss"]
[EventCountry "NED"]
[SourceTitle "playchess.com"]
[Source "ChessBase"]
[SourceQuality "1"]
[TimeControl "5400+30"]

{[%evp 15,68,2,10,0,34,-27,-27,-44,-45,-41,-39,-50,-37,-47,-47,-49,-39,-56,-66,-65,-55,-96,-89,-87,-88,-91,-84,-122,-123,-113,-108,-139,-135,-167,-163,-266,-182,-212,-156,-401,-394,-658,-651,-645,-610,-649,-623,-623,-553,-6740,-6383,-6227,-6224,-6179,-6070]} 1. e4 {[%emt 0:00:12]} c5 {[%emt 0:00:06]} 2. Nf3 {[%emt 0:00:06]} e6 {[%emt 0:00:07]} 3. d4 {[%emt 0:00:05]} cxd4 {[%emt 0:00:07]} 4. Nxd4 {[%emt 0:00:05]} a6 {[%emt 0:00:08]} 5. c4 {[%emt 0:00:24]} Nf6 {[%emt 0:00:07]} 6. Nc3 {[%emt 0:01:31]} Bb4 {[%emt 0:00:08]} 7. Bd3 {[%emt 0:00:38] 7.Bd3 was played by the boomers.} Nc6 {[%emt 0:00:30]} 8. Nxc6 {[%emt 0:09:41]} dxc6 {[%emt 0:00:10]} 9. e5 {[%emt 0:07:04] B41: Sicilian: Kan Variation: 5 c4.} Nd7 {[%emt 0:03:26]} 10. Qe2 {[%emt 0:02:35]} ({White should play} 10. f4 $14) 10... Qa5 $11 {[%emt 0:04:40] [#]} 11. Bd2 $146 {[%emt 0:12:15] Black has an edge.} ({Predecessor:} 11. O-O Qxe5 12. Ne4 Nc5 13. a3 Nxd3 14. Qxd3 Be7 15. Bd2 O-O 16. Bc3 Qh5 17. Rad1 {0-1 (75) Faulks,N (1917)-Sugden,J (2072) Hastings 2018}) 11... Qxe5 {[%emt 0:01:52]} ({Of course not} 11... Nxe5 12. Bc2 $11) 12. O-O-O {[%emt 0:08:08]} Qxe2 {[%emt 0:00:38]} 13. Bxe2 {[%emt 0:00:16]} O-O {[%emt 0:18:28]} 14. Ne4 {[%emt 0:03:40]} Be7 {[%emt 0:01:20]} 15. Be3 {[%emt 0:03:27]} Nf6 {[%emt 0:11:42]} 16. Nxf6+ {[%emt 0:07:09]} Bxf6 {[%emt 0:01:00]} 17. Bb6 {[%emt 0:00:12]} e5 {[%emt 0:01:22]} 18. h4 {[%emt 0:06:57]} Be6 {[%emt 0:06:56]} 19. g4 {[%emt 0:09:16]} Rfe8 {[%emt 0:01:34]} 20. f3 {[%emt 0:07:23]} Bd8 {[%emt 0:01:26]} 21. Bxd8 {[%emt 0:02:38]} Raxd8 {[%emt 0:00:09]} 22. Kc2 {[%emt 0:00:50]} c5 {[%emt 0:07:53]} 23. Rxd8 {[%emt 0:04:25]} Rxd8 $17 {[%emt 0:00:07][%mdl 4096] Endgame KRB-KRB} 24. a3 {[%emt 0:03:49]} f5 {[%emt 0:04:46]} 25. Rd1 {[%emt 0:02:28]} (25. g5 {might work better.}) 25... Rd4 {[%emt 0:09:56]} 26. Rxd4 {[%emt 0:00:30]} exd4 $19 {[%emt 0:00:07] KB-KB} 27. b4 $2 {[%emt 0:06:22] Loses the game.} (27. Kd3 $17) 27... b6 {[%emt 0:00:07]} 28. Kd3 $2 {[%emt 0:01:51] [#]} (28. bxc5 bxc5 29. Kd3) 28... fxg4 $1 {[%emt 0:05:57] Black is clearly winning.} 29. fxg4 {[%emt 0:00:13] [#]} h5 $1 {[%emt 0:00:12]} 30. gxh5 {[%emt 0:00:16]} Bf5+ {[%emt 0:00:05]} 31. Kd2 {[%emt 0:00:06]} Kf7 {[%emt 0:00:12]} 32. Bd3 {[%emt 0:01:25]} Bxd3 {[%emt 0:01:23]} 33. Kxd3 {[%emt 0:00:01]} Kg8 {[%emt 0:00:10]} 34. h6 {[%emt 0:00:51]} g6 {[%emt 0:00:30] Weighted Error Value: White=0.73/Black=0.06 (flawless)} 0-1

[Event "12th WLC Weekend 2022"]
[Site "Eindhoven"]
[Date "2022.05.14"]
[Round "1.12"]
[White "van der Valk, Niklas"]
[Black "Blijlevens, Pim"]
[Result "1-0"]
[ECO "A96"]
[WhiteElo "2200"]
[BlackElo "1958"]
[Annotator "TA"]
[PlyCount "213"]
[EventDate "2022.05.13"]
[EventType "swiss"]
[EventCountry "NED"]
[SourceTitle "playchess.com"]
[Source "ChessBase"]
[SourceQuality "1"]
[TimeControl "5400+30"]

{[%evp 20,213,54,51,57,62,54,37,143,38,43,41,59,47,56,57,58,12,12,-19,-23,-35,58,41,45,0,0,0,0,-58,-29,-30,-22,-22,-23,-125,-119,-81,-23,-43,-58,-62,-42,-34,-4,-14,0,0,0,0,0,0,0,0,0,0,-8,-10,0,-10,0,-34,0,0,0,0,0,0,0,0,0,0,0,0,0,0,0,0,0,0,0,0,0,0,0,0,0,0,0,0,0,0,0,0,0,0,0,0,0,0,0,0,0,0,0,0,0,0,0,0,0,0,0,0,0,0,0,0,0,0,0,0,0,0,0,0,0,0,0,0,0,0,0,0,0,0,0,0,0,0,0,0,0,0,0,0,0,0,0,0,0,0,0,0,0,0,0,0,0,0,0,0,0,0,0,0,0,0,0,0,0,0,0,0,0,0,0,0,0,0,0,0,0,0,0,7,7,7,12850,27998,27999,27999,27999,27999,27999,27999]} 1. c4 {[%emt 0:00:04]} f5 {[%emt 0:00:13]} 2. Nc3 {[%emt 0:00:17]} Nf6 {[%emt 0:00:14]} 3. d4 {[%emt 0:00:36]} e6 {[%emt 0:00:19]} 4. g3 {[%emt 0:00:09]} Be7 {[%emt 0:00:09]} 5. Bg2 {[%emt 0:00:16]} O-O {[%emt 0:00:41]} 6. Nf3 {[%emt 0:00:30]} d6 {[%emt 0:00:17]} 7. O-O {[%emt 0:04:51]} Ne4 {[%emt 0:00:16]} 8. Qc2 {[%emt 0:00:51]} Nxc3 {[%emt 0:00:19]} 9. bxc3 {[%emt 0:01:47]} Bf6 {[%emt 0:04:43]} 10. e4 {[%emt 0:01:05]} fxe4 {[%emt 0:00:29]} 11. Qxe4 {[%emt 0:00:10]} Nc6 {[%emt 0:01:30] A96: Classical Dutch: Fluid Systems: Early deviations.} 12. Re1 {[%emt 0:02:01]} e5 {[%emt 0:02:49] [#]} 13. h4 $146 {[%emt 0:02:07][%cal Rd4e5]} ({Predecessor:} 13. Be3 Re8 14. Qc2 Bg4 15. Rab1 Bxf3 16. Bxf3 exd4 17. Bxc6 bxc6 18. cxd4 Qd7 19. Kg2 {1-0 (35) Dordzhieva,D (2293)-Idrisov,I (2282) Chess.com INT 2021}) 13... g6 {[%emt 0:11:03]} (13... Qd7 $14) 14. h5 {[%emt 0:12:46] White is more active.} ({Don't play} 14. dxe5 Re8 $16) ({White should play} 14. Bh6 $16) 14... Bf5 $14 {[%emt 0:02:10]} 15. Qd5+ {[%emt 0:01:08]} Kh8 {[%emt 0:02:00]} 16. hxg6 {[%emt 0:03:36]} hxg6 {[%emt 0:01:09]} 17. Bh6 {[%emt 0:03:36]} Re8 {[%emt 0:04:23][%cal Bf8e8,Be8e7,Be7h7][%mdl 32]} 18. Kh2 {[%emt 0:06:18]} (18. Rad1 $14 {should be considered.}) 18... Re7 {[%emt 0:09:48] Strongly threatening ...Rh7.} 19. Rh1 {[%emt 0:10:00]} Rh7 {[%emt 0:07:10]} 20. Kg1 {[%emt 0:01:14] [#]} a6 {[%emt 0:04:20]} ({Better is} 20... Nxd4 $1 $15 21. Nxd4 (21. cxd4 c6 $17) 21... exd4) 21. dxe5 {[%emt 0:10:32]} dxe5 {[%emt 0:01:02]} 22. Be3 {[%emt 0:10:43]} Rxh1+ {[%emt 0:00:37]} 23. Kxh1 {[%emt 0:00:37]} Qe7 {[%emt 0:04:05]} 24. Nh2 {[%emt 0:07:42]} (24. c5 $11) 24... Rd8 {[%emt 0:05:20]} 25. Qf3 {[%emt 0:00:51]} Kg7 {[%emt 0:06:00]} 26. Ng4 {[%emt 0:03:00]} Bg5 {[%emt 0:07:33]} 27. Bxg5 {[%emt 0:01:30]} (27. Re1 $11) 27... Qxg5 $17 {[%emt 0:00:15]} 28. Ne3 {[%emt 0:01:04] [#]} Bd3 {[%emt 0:02:32] Inhibits Qe2.} (28... Rd2 $1 $17 {Threatens to win with ...e4.} 29. Kg1 e4) 29. Kg1 {[%emt 0:05:30]} e4 {[%emt 0:05:37]} 30. Qg4 {[%emt 0:01:27]} Qxg4 {[%emt 0:03:44]} 31. Nxg4 {[%emt 0:00:02]} Re8 {[%emt 0:00:13]} 32. Bf1 {[%emt 0:02:54]} Ne5 {[%emt 0:02:49]} 33. Nxe5 {[%emt 0:00:51]} Rxe5 {[%emt 0:00:02]} 34. Bxd3 {[%emt 0:03:21]} exd3 $11 {[%emt 0:00:03][%mdl 4096] Endgame KR-KR} 35. Rd1 {[%emt 0:00:29]} Rc5 {[%emt 0:00:08]} 36. Rxd3 {[%emt 0:00:10]} Rxc4 {[%emt 0:00:10]} 37. Kf1 {[%emt 0:01:27]} Kf6 {[%emt 0:00:06]} 38. Ke2 {[%emt 0:00:46]} Ra4 {[%emt 0:01:22]} 39. Rd2 {[%emt 0:00:30]} Ra3 {[%emt 0:01:05]} 40. Kd3 {[%emt 0:01:21]} Ke5 {[%emt 0:00:18]} 41. Kc4 {[%emt 0:00:07]} b5+ {[%emt 0:00:59]} 42. Kb4 {[%emt 0:00:38]} Ra4+ {[%emt 0:00:07]} 43. Kb3 {[%emt 0:00:06]} Rc4 {[%emt 0:05:02]} 44. Rd7 {[%emt 0:00:31]} Ke6 {[%emt 0:03:02]} 45. Rh7 {[%emt 0:00:39]} Rc6 {[%emt 0:00:35]} 46. Rg7 {[%emt 0:00:56]} Kf6 {[%emt 0:00:39]} 47. Rd7 {[%emt 0:00:07]} Ke5 {[%emt 0:00:58]} 48. Re7+ {[%emt 0:00:29]} Kf5 {[%emt 0:00:25]} 49. Re3 {[%emt 0:00:34]} g5 {[%emt 0:00:32]} 50. Rf3+ {[%emt 0:00:28]} Ke4 {[%emt 0:00:39]} 51. Rf7 {[%emt 0:00:42]} Kd3 {[%emt 0:00:57]} 52. Rd7+ {[%emt 0:00:49]} Ke4 {[%emt 0:00:49]} 53. Re7+ {[%emt 0:00:57]} Kf5 {[%emt 0:00:36]} 54. f3 {[%emt 0:00:33]} Kf6 {[%emt 0:00:19]} 55. Rh7 {[%emt 0:00:28] aiming for Rh6+.} Kg6 {[%emt 0:02:09] Against Rh6+} 56. Re7 {[%emt 0:00:29]} Kf6 {[%emt 0:00:06]} 57. Rd7 {[%emt 0:00:13]} Ke5 {[%emt 0:01:54]} 58. Rg7 {[%emt 0:01:08]} Kf6 {[%emt 0:00:22]} 59. Rg8 {[%emt 0:00:14]} Rc4 {[%emt 0:00:34]} 60. Rf8+ {[%emt 0:00:32]} Kg7 {[%emt 0:00:56]} 61. Rf5 {[%emt 0:00:28]} Kg6 {[%emt 0:00:10]} 62. Rd5 {[%emt 0:00:56]} Kf6 {[%emt 0:00:12]} 63. a3 {[%emt 0:00:26]} Kg6 {[%emt 0:00:18]} 64. Kc2 {[%emt 0:00:35]} Kf6 {[%emt 0:00:15]} 65. Rd8 {[%emt 0:00:19]} Rc6 {[%emt 0:00:48]} 66. Ra8 {[%emt 0:00:49]} Kf5 {[%emt 0:01:12]} 67. Rf8+ {[%emt 0:00:44]} Kg6 {[%emt 0:00:09]} 68. Re8 {[%emt 0:00:30]} Kf7 {[%emt 0:00:10]} 69. Re5 {[%emt 0:00:34]} Kf6 {[%emt 0:00:10]} 70. Re4 {[%emt 0:00:16]} Kg6 {[%emt 0:00:25]} 71. Kb3 {[%emt 0:00:25]} Rf6 {[%emt 0:01:29]} 72. Re3 {[%emt 0:00:27]} Rc6 {[%emt 0:00:17]} 73. Kc2 {[%emt 0:00:37]} Kf5 {[%emt 0:00:12]} 74. Re4 {[%emt 0:00:59]} Kg6 {[%emt 0:00:11]} 75. Kd3 {[%emt 0:00:13]} Kf6 {[%emt 0:00:22]} 76. a4 {[%emt 0:00:34]} Rd6+ {[%emt 0:01:53]} 77. Kc2 {[%emt 0:00:13]} c5 {[%emt 0:00:28]} 78. axb5 {[%emt 0:01:03]} axb5 {[%emt 0:00:07]} 79. Re8 {[%emt 0:00:28]} c4 {[%emt 0:00:38]} 80. Rf8+ {[%emt 0:00:43]} Kg6 {[%emt 0:01:09]} 81. Rb8 {[%emt 0:00:13]} Rd5 {[%emt 0:00:25]} 82. Rb6+ {[%emt 0:00:16]} Kf7 {[%emt 0:00:15]} 83. Rb7+ {[%emt 0:00:32]} Kf6 {[%emt 0:00:05]} 84. Rb8 {[%emt 0:00:28]} Kf7 {[%emt 0:00:10]} 85. Rb7+ {[%emt 0:00:34]} Kf6 {[%emt 0:00:06]} 86. g4 {[%emt 0:00:28]} Ke6 {[%emt 0:01:48]} 87. Rb8 {[%emt 0:00:24]} Kf6 {[%emt 0:00:36]} 88. Rf8+ {[%emt 0:00:16]} Kg6 {[%emt 0:00:14]} 89. Kb2 {[%emt 0:00:36]} Kg7 {[%emt 0:00:46]} 90. Rb8 {[%emt 0:00:30]} Kg6 {[%emt 0:00:27]} 91. Rb6+ {[%emt 0:00:27]} Kf7 {[%emt 0:01:04]} 92. Kc2 {[%emt 0:00:22]} Kg7 {[%emt 0:00:11]} 93. Re6 {[%emt 0:00:50]} Kf7 {[%emt 0:00:12]} 94. Rb6 {[%emt 0:00:47]} Kg7 {[%emt 0:00:06]} 95. Rb8 {[%emt 0:00:14]} Kg6 {[%emt 0:00:13]} 96. Kb2 {[%emt 0:00:45]} Kg7 {[%emt 0:00:11]} 97. Ka3 {[%emt 0:00:38]} Rd3 {[%emt 0:01:57][%csl LRc3,LRf3]} 98. Kb4 {[%emt 0:00:06]} Rxf3 {[%emt 0:00:08]} 99. Rxb5 {[%emt 0:00:09]} Kg6 {[%emt 0:00:21]} 100. Rc5 {[%emt 0:00:30]} Kf6 {[%emt 0:00:31]} 101. Rxc4 {[%emt 0:00:19]} Ke5 {[%emt 0:00:15]} 102. Rd4 {[%emt 0:01:05]} Rf4 {[%emt 0:01:26]} 103. Kc4 {[%emt 0:00:46]} Re4 $2 {[%emt 0:00:33][%mdl 8192] A mistake that costs the game.} (103... Rf2 $11) 104. Rxe4+ $18 {[%emt 0:00:30]} Kxe4 {[%emt 0:00:05] White mates.} 105. Kb5 {[%emt 0:00:20]} Kf4 {[%emt 0:00:08]} 106. c4 {[%emt 0:00:06][%cal Bc3c4,Bc4c5][%mdl 32]} Kxg4 {[%emt 0:00:05]} 107. c5 {[%emt 0:00:03] Weighted Error Value: White=0.14 (very precise) /Black=0.14 (very precise)} 1-0

[Event "12th WLC Weekend 2022"]
[Site "Eindhoven"]
[Date "2022.05.13"]
[Round "1.13"]
[White "Molenaar, Toine"]
[Black "Ciornei, Dragos"]
[Result "0-1"]
[ECO "E68"]
[WhiteElo "1823"]
[BlackElo "2164"]
[Annotator "TA"]
[PlyCount "92"]
[EventDate "2022.05.13"]
[EventType "swiss"]
[EventCountry "NED"]
[SourceTitle "playchess.com"]
[Source "ChessBase"]
[SourceQuality "1"]
[TimeControl "5400+30"]

{[%evp 17,92,34,28,43,35,0,27,0,49,-22,6,9,10,0,18,-21,0,0,59,40,60,48,56,56,47,43,51,54,112,15,50,50,50,50,54,61,60,33,30,37,53,31,34,34,33,22,17,11,8,6,8,0,0,0,8,0,0,1,2,0,0,0,0,0,0,-220,-179,-181,-170,-379,-369,-279,-279,-279,-279,-751,-723]} 1. d4 {[%emt 0:00:03]} Nf6 {[%emt 0:00:24]} 2. c4 {[%emt 0:00:07]} g6 {[%emt 0:00:18]} 3. Nf3 {[%emt 0:00:09]} Bg7 {[%emt 0:00:16]} 4. Nc3 {[%emt 0:00:11]} d6 {[%emt 0:00:35]} 5. g3 {[%emt 0:00:12]} O-O {[%emt 0:00:24]} 6. Bg2 {[%emt 0:00:07]} Nbd7 {[%emt 0:00:51]} 7. O-O {[%emt 0:00:15]} e5 {[%emt 0:00:28]} 8. e4 {[%emt 0:00:42]} exd4 {[%emt 0:00:51]} 9. Nxd4 {[%emt 0:00:20]} Re8 {[%emt 0:00:20]} 10. Rb1 {[%emt 0:20:51] E68: King's Indian: Fianchetto: 6...Nbd7 7 0-0 e5 8 e4.} Nc5 {[%emt 0:03:04][%cal Rc5e4]} 11. Re1 {[%emt 0:04:49]} a5 {[%emt 0:02:53]} 12. b3 {[%emt 0:02:44] White has an edge.} c6 {[%emt 0:05:37]} (12... Ng4 $11 {is more appropriate.}) 13. Bb2 {[%emt 0:05:23]} ({Better is} 13. h3 $14) 13... Qb6 {[%emt 0:14:34]} 14. Nc2 {[%emt 0:11:49]} Ng4 {[%emt 0:05:09][%cal Og4f2] [#] aiming for ...Nxf2!} 15. Ne3 {[%emt 0:16:05] [#]} Ne5 $146 {[%emt 0:10:26]} ({Predecessor:} 15... Nxe3 16. Rxe3 Be6 17. Ba1 Rad8 18. h3 Qb4 19. Qe1 f5 20. a3 Qb6 21. b4 axb4 22. axb4 Nxe4 {1-0 (34) Cmilyte,V (2464)-Melamed,T (2363) Kemer 2007}) 16. Bf1 {[%emt 0:00:59] Against Ned3} Be6 {[%emt 0:06:15]} 17. Kg2 {[%emt 0:08:37] Threatens to win with f4.} f6 {[%emt 0:06:54]} (17... h5 $11) 18. f4 {[%emt 0:07:02]} Nf7 {[%emt 0:01:31]} 19. Bd3 {[%emt 0:01:02]} Nxd3 {[%emt 0:02:02]} 20. Qxd3 {[%emt 0:00:26]} Rad8 {[%emt 0:00:27]} 21. Qc2 {[%emt 0:01:00]} Qc7 {[%emt 0:06:51]} 22. Rbd1 {[%emt 0:00:58]} Qc8 {[%emt 0:01:50]} (22... Nh6 $14) 23. Kf2 {[%emt 0:04:02]} ({White should play} 23. f5 $16) 23... f5 {[%emt 0:03:16]} 24. exf5 {[%emt 0:00:44]} Bxf5 {[%emt 0:02:04]} 25. Nxf5 {[%emt 0:00:09]} Qxf5 {[%emt 0:00:38]} 26. Qxf5 {[%emt 0:00:24]} gxf5 {[%emt 0:00:08]} 27. Na4 {[%emt 0:00:53][%cal Bc3a4,Ba4b2,Bb2d3,Bd3e1,Be1f3][%mdl 32]} Bxb2 {[%emt 0:00:28]} 28. Nxb2 {[%emt 0:00:03]} Kg7 {[%emt 0:02:36]} 29. Nd3 {[%emt 0:03:13]} Kf6 {[%emt 0:01:13]} 30. Rxe8 {[%emt 0:00:44]} (30. Kf3 {looks sharper.} h5 31. Rxe8 Rxe8 32. Ne1) 30... Rxe8 $14 {[%emt 0:00:14][%mdl 4096] Endgame KRN-KRN} 31. Ne1 {[%emt 0:00:36]} a4 {[%emt 0:05:56]} 32. Nf3 {[%emt 0:04:17]} axb3 {[%emt 0:01:17]} 33. axb3 {[%emt 0:00:02]} Ra8 {[%emt 0:00:27]} 34. Ke3 {[%emt 0:00:28]} Ra3 {[%emt 0:03:08]} 35. Rd3 {[%emt 0:00:13]} h6 {[%emt 0:03:15]} 36. Kd4 {[%emt 0:01:43]} Ra2 {[%emt 0:05:38]} 37. Kc3 {[%emt 0:00:35]} c5 {[%emt 0:02:35] Against Nd4} 38. Rd5 {[%emt 0:00:50]} Ke6 {[%emt 0:00:50]} 39. Rd3 {[%emt 0:00:38]} Nd8 {[%emt 0:01:09]} 40. Re3+ {[%emt 0:00:16]} Kd7 {[%emt 0:00:52]} 41. Nh4 $2 {[%emt 0:00:48] [#]} (41. Rd3 $11) 41... Nc6 $1 $19 {[%emt 0:00:34]} 42. Rd3 {[%emt 0:02:45]} ({Don't go for} 42. Nxf5 $2 Nb4 43. Nd4 cxd4+ 44. Kxd4 Nc2+ 45. Ke4 Nxe3 46. Kxe3 Rxh2 $19) 42... Nd4 {[%emt 0:01:10] ( -> ...Rc2#)} 43. Rxd4 $2 {[%emt 0:02:23]} (43. Rd2 Rxd2 44. Kxd2) 43... cxd4+ {[%emt 0:00:11]} 44. Kxd4 {[%emt 0:00:02]} Ke6 {[%emt 0:00:29]} ({And not} 44... Rxh2 45. Nxf5 Ke6 46. g4 $17) 45. Nf3 {[%emt 0:00:30]} Rb2 {[%emt 0:01:00]} 46. c5 $2 {[%emt 0:00:51]} (46. Kc3 Rf2 47. Nd4+ Kf6 48. Kd3) 46... Rxb3 {[%emt 0:00:37] Weighted Error Value: White=0.49/Black=0.11 (very precise)} 0-1

[Event "12th WLC Weekend 2022"]
[Site "Eindhoven"]
[Date "2022.05.13"]
[Round "1.14"]
[White "Albers, Sasa"]
[Black "Bakija, Alan"]
[Result "1-0"]
[ECO "B11"]
[WhiteElo "2117"]
[BlackElo "1868"]
[Annotator "TA"]
[PlyCount "107"]
[EventDate "2022.05.13"]
[EventType "swiss"]
[EventCountry "NED"]
[SourceTitle "playchess.com"]
[Source "ChessBase"]
[SourceQuality "1"]
[TimeControl "5400+30"]

{[%evp 10,107,18,11,14,14,15,16,10,22,50,25,43,-5,0,0,0,-7,6,0,10,6,20,18,36,19,32,2,14,20,6,6,11,0,28,0,22,16,27,30,77,79,133,119,121,139,127,142,117,127,137,114,153,143,249,261,266,256,243,239,337,309,315,284,369,377,370,247,318,307,407,400,437,434,480,389,841,735,788,664,1175,1177,1114,1081,826,769,2012,1725,1547,698,3922,2252,2333,1484,5257,5218,2104,1337,3681,1560]} 1. e4 {[%emt 0:00:01]} c6 {[%emt 0:00:03]} 2. Nf3 {[%emt 0:00:08]} d5 {[%emt 0:00:04]} 3. Nc3 {[%emt 0:00:06]} Bg4 {[%emt 0:00:06]} 4. h3 {[%emt 0:00:05]} Bxf3 {[%emt 0:00:04]} 5. Qxf3 {[%emt 0:00:05]} e6 {[%emt 0:00:05]} 6. Be2 {[%emt 0:00:06]} Bc5 {[%emt 0:00:09] B11: Caro-Kann: Two Knights Variation.} 7. O-O {[%emt 0:00:06]} Ne7 {[%emt 0:01:56]} 8. Na4 {[%emt 0:01:35]} Bd6 {[%emt 0:00:41] The position is equal.} 9. d4 {[%emt 0:00:19]} O-O {[%emt 0:08:24] [#]} 10. Bd3 $146 {[%emt 0:10:36]} (10. e5 $5 {[%cal Re5d6]} Bc7 11. Qd3 $14) ({Predecessor:} 10. e5 Bc7 11. Bd3 Ng6 12. Qg4 Nd7 13. Bg5 Qe8 14. Rae1 c5 15. Bxg6 fxg6 16. Nxc5 Nxc5 17. dxc5 {½-½ (60) Stork,O (2365)-Suvorov,L (2292) Willingen 2021}) 10... Nd7 {[%emt 0:09:34]} 11. exd5 {[%emt 0:03:07]} (11. e5 $14 Bc7 12. Qg4 (12. Qh5 g6 $11)) 11... cxd5 $11 {[%emt 0:04:51]} 12. Nc3 {[%emt 0:11:20]} Nc6 {[%emt 0:05:27]} 13. Nb5 {[%emt 0:07:37][%cal Bc3b5,Bb5a3,Ba3c2,Bc2e1][%mdl 32]} (13. Qh5 g6 14. Qd1 Nxd4 $17) 13... Bb8 {[%emt 0:09:42]} (13... Nf6 14. Nxd6 Qxd6 15. Bf4 $14) 14. c3 {[%emt 0:01:25]} (14. Qh5 g6 15. Qd1 a6 $17) 14... a6 {[%emt 0:03:03]} 15. Na3 {[%emt 0:00:04]} (15. Qh5 $2 Nf6 16. Qh4 axb5 $19) 15... b5 {[%emt 0:00:58]} 16. Nc2 {[%emt 0:01:14]} Qb6 {[%emt 0:02:49]} 17. Be3 {[%emt 0:06:57]} Bd6 {[%emt 0:01:31]} 18. b3 $40 {[%emt 0:15:13][%mdl 128] White is up to no good.} Na5 {[%emt 0:06:49]} 19. Rab1 {[%emt 0:09:59][%cal Oc3c4]} Qc7 {[%emt 0:17:19] Prevents c4.} 20. Rfc1 {[%emt 0:06:19][%cal Bf1c1,Bc1c2,Bc2a2][%mdl 32]} Rfc8 {[%emt 0:02:45]} (20... Qxc3 $2 21. Ne1 Qb4 22. a3 (22. Qh5 Nf6 $11) 22... Qxa3 23. Nc2 $18) 21. Ne1 {[%emt 0:08:30]} Nb6 {[%emt 0:04:13]} 22. Bf1 {[%emt 0:00:53]} (22. Qg4 {feels hotter.} Nd7 23. Bh6 g6 24. Nf3) 22... Qd8 {[%emt 0:09:46]} 23. Nd3 {[%emt 0:01:38]} Ba3 {[%emt 0:01:16]} 24. Rc2 {[%emt 0:01:34]} Ra7 {[%emt 0:05:47]} (24... Bd6 $11) 25. Nc5 $16 {[%emt 0:08:35] Black is now going downhill.} Bxc5 {[%emt 0:03:53]} ({Black should play} 25... Qh4) 26. dxc5 {[%emt 0:00:03]} Nd7 {[%emt 0:01:09]} 27. a4 {[%emt 0:02:13]} Rb7 {[%emt 0:00:40]} 28. axb5 {[%emt 0:00:26]} axb5 {[%emt 0:00:03]} 29. Ra2 {[%emt 0:00:48]} Nc6 {[%emt 0:00:44]} 30. b4 {[%emt 0:00:49]} Ra8 {[%emt 0:00:16]} 31. Rba1 {[%emt 0:00:10]} Rba7 {[%emt 0:01:12]} (31... Rxa2 $16 32. Rxa2 Qc8) 32. Rxa7 $18 {[%emt 0:01:43]} (32. Bxb5 $2 Rxa2 33. Rxa2 Rxa2 $19) 32... Rxa7 {[%emt 0:00:04]} 33. Rxa7 {[%emt 0:00:34]} Nxa7 {[%emt 0:00:02]} 34. Qg3 {[%emt 0:00:26] Against Ne5. Black must now prevent Bh6.} Qb8 {[%emt 0:01:29]} (34... e5 $142 35. f4 Qc7) 35. Qd6 {[%emt 0:01:20]} Qb7 {[%emt 0:00:33]} 36. Bd4 {[%emt 0:00:22]} Nc8 {[%emt 0:00:16]} 37. Qg3 {[%emt 0:01:29][%csl Gd4][%cal Rg3g7] [#]} f6 {[%emt 0:00:19]} 38. f4 {[%emt 0:00:04]} Ne7 {[%emt 0:00:18]} 39. Qd3 {[%emt 0:00:43]} Nc6 {[%emt 0:01:09]} 40. Qxb5 {[%emt 0:00:15]} Qc7 {[%emt 0:00:23]} 41. Bf2 {[%emt 0:00:52]} e5 {[%emt 0:00:26]} 42. Qd3 {[%emt 0:00:22]} d4 {[%emt 0:00:24]} (42... Ne7 43. c4 d4) 43. cxd4 {[%emt 0:00:14] White is clearly winning.} exd4 {[%emt 0:00:21]} 44. Bxd4 {[%emt 0:00:51]} Qxf4 {[%emt 0:00:24]} 45. Bf2 {[%emt 0:00:40] This bishop pair is nice.} Nde5 {[%emt 0:00:15]} 46. Qd5+ {[%emt 0:00:24]} Kf8 {[%emt 0:00:17]} 47. b5 {[%emt 0:00:13]} Nb4 {[%emt 0:00:24]} 48. Qa8+ {[%emt 0:00:53]} Kf7 {[%emt 0:00:12]} 49. b6 {[%emt 0:00:28]} (49. c6 $142) 49... Nbd3 {[%emt 0:00:15]} 50. Qa2+ {[%emt 0:00:13]} Kg6 {[%emt 0:00:26]} 51. b7 {[%emt 0:00:25] [#] And now Bxd3+ would win.} Nxf2 {[%emt 0:01:14]} 52. Qxf2 {[%emt 0:00:07]} (52. Qb1+ Kg5 53. h4+ (53. Qxh7 Nxh3+ 54. gxh3 Nf3+ 55. Kf2 Nh2+ 56. Kg1 Nf3+ 57. Kg2 Nh4+ 58. Kg1 Nf3+ $11) 53... Kh6 $17) 52... Qb4 {[%emt 0:00:06]} 53. c6 {[%emt 0:00:42]} Qd6 {[%emt 0:00:26]} 54. Qc2+ {[%emt 0:00:23] Weighted Error Value: White=0.23 (precise) /Black=0.30} 1-0

[Event "12th WLC Weekend 2022"]
[Site "Eindhoven"]
[Date "2022.05.13"]
[Round "1.15"]
[White "Dekker, Marvin"]
[Black "Van Helvoort, Rob"]
[Result "1/2-1/2"]
[ECO "D87"]
[WhiteElo "2014"]
[BlackElo "2133"]
[Annotator "TA"]
[PlyCount "38"]
[EventDate "2022.05.13"]
[EventType "swiss"]
[EventCountry "NED"]
[SourceTitle "playchess.com"]
[Source "ChessBase"]
[SourceQuality "1"]
[TimeControl "5400+30"]

{[%evp 22,38,25,18,18,0,0,-30,-27,-27,-13,-6,-18,-166,-95,-120,-14,-16,-13]} 1. d4 {[%emt 0:00:21]} Nf6 {[%emt 0:00:06]} 2. c4 {[%emt 0:00:09]} g6 {[%emt 0:00:05]} 3. Nc3 {[%emt 0:00:08]} d5 {[%emt 0:00:11]} 4. cxd5 {[%emt 0:00:08]} Nxd5 {[%emt 0:00:07]} 5. e4 {[%emt 0:00:08]} Nxc3 {[%emt 0:00:08]} 6. bxc3 {[%emt 0:00:06]} Bg7 {[%emt 0:00:18]} 7. Bc4 {[%emt 0:00:29]} O-O {[%emt 0:00:14]} 8. Ne2 {[%emt 0:00:08]} c5 {[%emt 0:00:12]} 9. Be3 {[%emt 0:04:50]} Nc6 {[%emt 0:00:16]} 10. O-O {[%emt 0:00:30]} Qc7 {[%emt 0:00:17]} 11. Rc1 {[%emt 0:12:06]} b6 {[%emt 0:00:27]} 12. Qd2 {[%emt 0:11:03] 12.h4 is more advanced technology.} Bb7 {[%emt 0:01:04] D87: Exchange Grünfeld: Classical Line: Variations without ...cxd4.} 13. Bh6 {[%emt 0:11:41]} Rad8 {[%emt 0:03:13] [#]} 14. Bd5 $146 {[%emt 0:11:14]} ({Predecessor:} 14. Bxg7 Kxg7 15. f4 Qd7 16. Bb5 Qe6 17. f5 Qd6 18. Bxc6 Bxc6 19. d5 Bd7 20. c4 {0-1 (41) Vachier Lagrave,M (2722)-Morozevich,A (2694) Biel 2011}) 14... e6 {[%emt 0:37:54] [#] Hoping for ...Bxh6. Black has an edge.} 15. Bxc6 {[%emt 0:00:59]} Qxc6 {[%emt 0:00:14]} 16. Bxg7 {[%emt 0:07:41]} Kxg7 {[%emt 0:00:03]} 17. Qg5 {[%emt 0:06:53]} (17. Ng3 $11 {and White stays safe.}) 17... f6 {[%emt 0:09:38]} (17... Qxe4 $19 18. Rfe1 Qd5) 18. Qg3 {[%emt 0:01:34]} Ba6 {[%emt 0:01:17]} (18... Qxe4 $17 {Threatens to win with ...Ba6.} 19. Rfe1 e5) 19. Qe3 $11 {[%emt 0:10:10]} Bxe2 {[%emt 0:04:07] Weighted Error Value: White=0.42/Black=0.41} 1/2-1/2